[Event "FIDE Grand Swiss 2023"]
[Site "Villa Marina, Douglas, Isle of Man"]
[Date "2023.11.01"]
[Round "7.1"]
[White "Wojtaszek, Radoslaw"]
[Black "Caruana, Fabiano"]
[Result "1/2-1/2"]
[WhiteElo "2668"]
[BlackElo "2786"]
[EventDate "2023.10.25"]
[ECO "D45"]
[PlyCount "122"]
[BlackFideId "2020009"]
[TimeControl "40/100 + 20/50 + 15 + 30s/move"]
[WhiteFideId "1118358"]
[ePGN "0.1;DGT LiveChess/2.2.5"]

1.d4 {[%clk 01:40:57]} 1...Nf6 {[%clk 01:40:55][%emt 00:00:06]} 2.c4 {[%clk
01:41:21][%emt 00:00:06]} 2...e6 {[%clk 01:41:22][%emt 00:00:04]} 3.Nf3 {[%clk
01:41:42][%emt 00:00:08]} 3...d5 {[%clk 01:41:45][%emt 00:00:07]} 4.Nc3 {[%clk
01:42:05][%emt 00:00:06]} 4...c6 {[%clk 01:42:10][%emt 00:00:05]} 5.e3 {[%clk
01:42:23][%emt 00:00:12]} 5...Nbd7 {[%clk 01:42:35][%emt 00:00:06]} 6.Qc2 
{[%clk 01:42:41][%emt 00:00:12]} 6...Bd6 {[%clk 01:42:49][%emt 00:00:16]} 7.Bd3 
{[%clk 01:43:03][%emt 00:00:07]} 7...O-O {[%clk 01:42:31][%emt 00:00:49]} 8.O-O 
{[%clk 01:43:27][%emt 00:00:06]} 8...Re8 {[%clk 01:42:30][%emt 00:00:32]} 9.e4 
{[%clk 01:38:36][%emt 00:05:21]} 9...dxc4 {[%clk 01:42:47][%emt 00:00:14]} 
10.Bxc4 {[%clk 01:38:58][%emt 00:00:07]} 10...e5 {[%clk 01:43:13][%emt
00:00:04]} 11.Be3 {[%clk 01:17:41][%emt 00:21:47]} 11...exd4 {[%clk
01:43:10][%emt 00:00:33]} 12.Bxd4 {[%clk 01:15:58][%emt 00:02:12]} 12...Ng4 
{[%clk 01:43:33][%emt 00:00:07]} 13.Rad1 {[%clk 01:10:29][%emt 00:05:59]} 
13...Qe7 {[%clk 01:43:43][%emt 00:00:20]} 14.Qd2 {[%clk 01:04:25][%emt
00:06:35]} 14...Nge5 {[%clk 01:38:05][%emt 00:06:08]} 15.Nxe5 {[%clk
01:00:28][%emt 00:04:27]} 15...Nxe5 {[%clk 01:38:29][%emt 00:00:06]} 16.Be2 
{[%clk 00:59:37][%emt 00:01:20]} 16...Be6 {[%clk 01:36:44][%emt 00:02:15]} 
17.f4 {[%clk 00:55:13][%emt 00:04:54]} 17...Nc4 {[%clk 01:36:50][%emt 00:00:25]} 
18.Qc1 {[%clk 00:55:14][%emt 00:00:28]} 18...f6 {[%clk 01:36:58][%emt 00:00:22]} 
19.b3 {[%clk 00:53:41][%emt 00:02:03]} 19...Nb6 {[%clk 01:34:02][%emt 00:03:27]} 
20.Kh1 {[%clk 00:52:44][%emt 00:01:26]} 20...Rad8 {[%clk 01:32:11][%emt
00:02:20]} 21.Bh5 {[%clk 00:51:38][%emt 00:01:36]} 21...Rf8 {[%clk
01:25:09][%emt 00:07:33]} 22.Bf3 {[%clk 00:50:03][%emt 00:02:04]} 22...Bf7 
{[%clk 01:10:02][%emt 00:15:37]} 23.Rfe1 {[%clk 00:45:10][%emt 00:05:22]} 
23...Bb4 {[%clk 01:03:41][%emt 00:06:52]} 24.e5 {[%clk 00:39:39][%emt 00:06:02]} 
24...f5 {[%clk 01:04:01][%emt 00:00:10]} 25.Bf2 {[%clk 00:39:56][%emt 00:00:12]} 
25...Be6 {[%clk 00:58:26][%emt 00:06:06]} 26.Rf1 {[%clk 00:39:36][%emt
00:00:49]} 26...Rxd1 {[%clk 00:53:26][%emt 00:05:31]} 27.Rxd1 {[%clk
00:39:45][%emt 00:00:21]} 27...Rd8 {[%clk 00:53:45][%emt 00:00:11]} 28.Ne2 
{[%clk 00:35:51][%emt 00:04:23]} 28...g6 {[%clk 00:50:22][%emt 00:03:54]} 
29.Rxd8+ {[%clk 00:20:02][%emt 00:16:19]} 29...Qxd8 {[%clk 00:49:12][%emt
00:01:40]} 30.Bc5 {[%clk 00:20:22][%emt 00:00:09]} 30...Bxc5 {[%clk
00:37:22][%emt 00:12:21]} 31.Qxc5 {[%clk 00:20:43][%emt 00:00:09]} 31...Qd1+ 
{[%clk 00:37:40][%emt 00:00:12]} 32.Ng1 {[%clk 00:21:06][%emt 00:00:06]} 
32...Qd2 {[%clk 00:37:57][%emt 00:00:13]} 33.Qe7 {[%clk 00:20:28][%emt
00:01:07]} 33...Qd7 {[%clk 00:38:19][%emt 00:00:09]} 34.Qa3 {[%clk
00:18:16][%emt 00:02:42]} 34...a6 {[%clk 00:33:48][%emt 00:05:01]} 35.Qc5 
{[%clk 00:14:57][%emt 00:03:49]} 35...Nd5 {[%clk 00:33:04][%emt 00:01:15]} 
36.Ne2 {[%clk 00:15:20][%emt 00:00:06]} 36...Kf7 {[%clk 00:28:43][%emt
00:04:52]} 37.Kg1 {[%clk 00:11:48][%emt 00:04:03]} 37...b6 {[%clk 00:23:12][%emt
00:06:01]} 38.Qd4 {[%clk 00:11:47][%emt 00:00:30]} 38...c5 {[%clk 00:23:20][%emt
00:00:23]} 39.Qd2 {[%clk 00:12:01][%emt 00:00:15]} 39...b5 {[%clk 00:16:55][%emt
00:06:55]} 40.Kf2 {[%clk 00:03:58][%emt 00:08:33]} 40...b4 {[%clk 00:12:42][%emt
00:04:44]} 41.g3 {[%clk 00:48:36][%emt 00:05:51]} 41...a5 {[%clk 00:59:12][%emt
00:04:01]} 42.Qd3 {[%clk 00:34:02][%emt 00:15:04]} 42...Nc7 {[%clk
00:43:57][%emt 00:15:45]} 43.Qxd7+ {[%clk 00:28:18][%emt 00:06:14]} 43...Bxd7 
{[%clk 00:44:13][%emt 00:00:15]} 44.Ke3 {[%clk 00:22:31][%emt 00:06:16]} 
44...Be6 {[%clk 00:36:37][%emt 00:08:07]} 45.Bc6 {[%clk 00:21:00][%emt
00:02:01]} 45...Nd5+ {[%clk 00:34:49][%emt 00:02:18]} 46.Kd3 {[%clk
00:18:42][%emt 00:02:47]} 46...Ke7 {[%clk 00:32:09][%emt 00:03:10]} 47.Bb5 
{[%clk 00:18:59][%emt 00:00:13]} 47...Nb6 {[%clk 00:32:30][%emt 00:00:10]} 
48.Nc1 {[%clk 00:16:06][%emt 00:03:23]} 48...h6 {[%clk 00:25:28][%emt 00:07:32]} 
49.h4 {[%clk 00:16:29] [%emt 00:00:06]} 49...Bd7 {[%clk 00:23:56][%emt
00:02:03]} 50.Ba6 {[%clk 00:16:45][%emt 00:00:14]} 50...Be6 {[%clk
00:22:45][%emt 00:01:41]} 51.Bb5 {[%clk 00:16:29][%emt 00:00:06]} 51...h5 
{[%clk 00:19:08][%emt 00:04:06]} 52.Kd2 {[%clk 00:15:45][%emt 00:01:53]} 
52...Nd5 {[%clk 00:15:15][%emt 00:04:23]} 53.Ne2 {[%clk 00:15:48][%emt
00:00:27]} 53...Bd7 {[%clk 00:14:59][%emt 00:00:46]} 54.Ba6 {[%clk
00:11:52][%emt 00:04:26]} 54...a4 {[%clk 00:11:29][%emt 00:04:00]} 55.bxa4 
{[%clk 00:03:33][%emt 00:08:50]} 55...Bxa4 {[%clk 00:11:55][%emt 00:00:04]} 
56.Bb7 {[%clk 00:02:02][%emt 00:02:00]} 56...Nb6 {[%clk 00:07:58][%emt
00:04:28]} 57.Nc1 {[%clk 00:02:28][%emt 00:00:04]} 57...Nc4+ {[%clk
00:06:27][%emt 00:02:01]} 58.Ke1 {[%clk 00:02:52][%emt 00:00:05]} 58...Nb2 
{[%clk 00:03:15][%emt 00:03:43]} 59.Nb3 {[%clk 00:01:26][%emt 00:01:56]} 
59...c4 {[%clk 00:01:08][%emt 00:02:36]} 60.Nd4 {[%clk 00:01:08][%emt 00:00:47]} 
60...c3 {[%clk 00:01:00][%emt 00:00:39]} 61.Ba6 {[%clk 00:12:05] [%emt
00:04:33]} 61...Kd7 {[%clk 00:10:37] [%emt 00:05:53]} 1/2-1/2

[Event "FIDE Grand Swiss 2023"]
[Site "Villa Marina, Douglas, Isle of Man"]
[Date "2023.11.01"]
[Round "7.2"]
[White "Nakamura, Hikaru"]
[Black "Predke, Alexandr"]
[Result "1/2-1/2"]
[WhiteElo "2780"]
[BlackElo "2656"]
[EventDate "2023.10.25"]
[ECO "B40"]
[PlyCount "105"]
[BlackFideId "24107581"]
[TimeControl "40/100 + 20/50 + 15 + 30s/move"]
[WhiteFideId "2016192"]

1.e4 {[%clk 01:40:54][%emt 00:00:04]} 1...c5 {[%clk 01:39:35][%emt 00:01:25]} 
2.Nf3 {[%clk 01:41:06][%emt 00:00:18]} 2...e6 {[%clk 01:39:58][%emt 00:00:08]} 
3.d4 {[%clk 01:41:05][%emt 00:00:30]} 3...cxd4 {[%clk 01:40:18][%emt 00:00:10]} 
4.Nxd4 {[%clk 01:41:31][%emt 00:00:04]} 4...Nf6 {[%clk 01:40:41][%emt 00:00:08]} 
5.Nc3 {[%clk 01:41:27][%emt 00:00:34]} 5...Nc6 {[%clk 01:40:56][%emt 00:00:15]} 
6.a3 {[%clk 01:35:29][%emt 00:06:28]} 6...d6 {[%clk 01:41:03][%emt 00:00:23]} 
7.Be3 {[%clk 01:27:31][%emt 00:08:29]} 7...Be7 {[%clk 01:41:09][%emt 00:00:23]} 
8.Bc4 {[%clk 01:25:35][%emt 00:02:26]} 8...Bd7 {[%clk 01:38:57][%emt 00:02:42]} 
9.O-O {[%clk 01:19:45][%emt 00:06:19]} 9...O-O {[%clk 01:35:28][%emt 00:04:00]} 
10.f4 {[%clk 01:13:43][%emt 00:06:32]} 10...Nxd4 {[%clk 01:05:28][%emt
00:30:29]} 11.Bxd4 {[%clk 01:13:43][%emt 00:00:30]} 11...e5 {[%clk
00:57:31][%emt 00:08:28]} 12.Be3 {[%clk 00:53:07][%emt 00:21:06]} 12...Ng4 
{[%clk 00:49:36][%emt 00:08:25]} 13.Qe2 {[%clk 00:52:51][%emt 00:00:46]} 
13...Nxe3 {[%clk 00:46:52][%emt 00:03:14]} 14.Qxe3 {[%clk 00:52:21][%emt
00:01:00]} 14...Rc8 {[%clk 00:47:11][%emt 00:00:11]} 15.Bd5 {[%clk
00:48:46][%emt 00:04:05]} 15...exf4 {[%clk 00:47:34][%emt 00:00:07]} 16.Qxa7 
{[%clk 00:49:05][%emt 00:00:12]} 16...Bg5 {[%clk 00:32:55][%emt 00:15:09]} 
17.Qf2 {[%clk 00:48:33][%emt 00:01:01]} 17...Bf6 {[%clk 00:30:36][%emt
00:02:49]} 18.Rab1 {[%clk 00:44:50][%emt 00:04:13]} 18...Be5 {[%clk
00:24:11][%emt 00:06:56]} 19.Bxb7 {[%clk 00:44:35][%emt 00:00:45]} 19...Rb8 
{[%clk 00:23:26][%emt 00:01:14]} 20.Bd5 {[%clk 00:42:46][%emt 00:02:19]} 
20...Qf6 {[%clk 00:22:37][%emt 00:01:19]} 21.Ne2 {[%clk 00:34:28][%emt
00:08:48]} 21...Bxb2 {[%clk 00:16:15][%emt 00:06:52]} 22.Qxf4 {[%clk
00:32:36][%emt 00:02:21]} 22...Qxf4 {[%clk 00:15:23][%emt 00:01:23]} 23.Nxf4 
{[%clk 00:33:02][%emt 00:00:05]} 23...Bxa3 {[%clk 00:15:43][%emt 00:00:10]} 
24.Nd3 {[%clk 00:33:23][%emt 00:00:08]} 24...Be6 {[%clk 00:15:07][%emt
00:01:06]} 25.Rxb8 {[%clk 00:31:23][%emt 00:02:31]} 25...Rxb8 {[%clk
00:15:30][%emt 00:00:06]} 26.Ra1 {[%clk 00:31:51][%emt 00:00:02]} 26...Bc5+ 
{[%clk 00:09:14][%emt 00:06:46]} 27.Nxc5 {[%clk 00:30:03][%emt 00:02:19]} 
27...dxc5 {[%clk 00:09:41][%emt 00:00:03]} 28.Ra5 {[%clk 00:25:02][%emt
00:05:31]} 28...Kf8 {[%clk 00:06:08][%emt 00:04:04]} 29.Rxc5 {[%clk
00:23:50][%emt 00:01:41]} 29...Rb1+ {[%clk 00:06:32][%emt 00:00:06]} 30.Kf2 
{[%clk 00:24:14][%emt 00:00:05]} 30...Ke7 {[%clk 00:07:00][%emt 00:00:03]} 
31.h4 {[%clk 00:14:19][%emt 00:10:26]} 31...Rd1 {[%clk 00:05:16][%emt 00:02:13]} 
32.c4 {[%clk 00:14:28][%emt 00:00:21]} 32...Rc1 {[%clk 00:04:41][%emt 00:01:06]} 
33.Kf3 {[%clk 00:13:44][%emt 00:01:14]} 33...Kd6 {[%clk 00:04:33][%emt
00:00:37]} 34.Rc6+ {[%clk 00:13:59][%emt 00:00:16]} 34...Ke5 {[%clk
00:04:50][%emt 00:00:13]} 35.Rc7 {[%clk 00:08:15][%emt 00:06:14]} 35...Rc3+ 
{[%clk 00:04:58][%emt 00:00:22]} 36.Kf2 {[%clk 00:08:43][%emt 00:00:02]} 
36...Rc2+ {[%clk 00:04:26][%emt 00:01:02]} 37.Kg3 {[%clk 00:09:05][%emt
00:00:07]} 37...Rc3+ {[%emt 00:00:07]} 38.Kh2 g6 {[%clk 00:04:09][%emt
00:01:10]} 39.Rc6 {[%clk 00:01:52][%emt 00:08:13]} 39...h6 {[%clk 00:04:03][%emt
00:00:36]} 40.Rc7 {[%clk 00:01:40][%emt 00:00:42]} 40...g5 {[%clk 00:02:35][%emt
00:01:58]} 41.h5 {[%clk 00:00:48][%emt 00:01:21]} 41...Kf4 {[%clk 00:36:59][%emt
00:16:06]} 42.c5 {[%clk 00:40:34][%emt 00:10:41]} 42...g4 {[%clk 00:34:12][%emt
00:03:19]} 43.Bxe6 {[%clk 00:37:36][%emt 00:03:28]} 43...fxe6 {[%clk
00:34:37][%emt 00:00:05]} 44.c6 {[%clk 00:37:51][%emt 00:00:15]} 44...Kg5 
{[%clk 00:34:21][%emt 00:00:46]} 45.Rg7+ {[%clk 00:26:43][%emt 00:11:39]} 
45...Kxh5 {[%clk 00:33:49] [%emt 00:01:02]} 46.c7 {[%clk 00:27:05] [%emt
00:00:07]} 46...e5 {[%clk 00:34:04] [%emt 00:00:16]} 47.g3 {[%clk 00:27:21]
[%emt 00:00:14]} 47...Rc2+ {[%clk 00:34:23] [%emt 00:00:12]} 48.Kg1 {[%clk
00:27:48] [%emt 00:00:03]} 48...Rg2+ {[%clk 00:34:42] [%emt 00:00:11]} 49.Kf1 
{[%clk 00:28:11] [%emt 00:00:07]} 49...Rf2+ {[%clk 00:34:54] [%emt 00:00:18]} 
50.Ke1 {[%clk 00:28:39] [%emt 00:00:03]} 50...Re2+ {[%clk 00:35:16] [%emt
00:00:08]} 51.Kd1 {[%clk 00:29:07] [%emt 00:00:02]} 51...Rd2+ {[%clk 00:35:42]
[%emt 00:00:04]} 52.Kc1 {[%clk 00:29:34] [%emt 00:00:03]} 52...Rc2+ {[%clk
00:36:09] [%emt 00:00:03]} 53.Kxc2 {[%emt 00:00:04]} 1/2-1/2

[Event "FIDE Grand Swiss 2023"]
[Site "Villa Marina, Douglas, Isle of Man"]
[Date "2023.11.01"]
[Round "7.3"]
[White "Sindarov, Javokhir"]
[Black "Vidit, Santosh Gujrathi"]
[Result "0-1"]
[WhiteElo "2658"]
[BlackElo "2716"]
[EventDate "2023.10.25"]
[ECO "C50"]
[PlyCount "114"]
[BlackFideId "5029465"]
[TimeControl "40/100 + 20/50 + 15 + 30s/move"]
[WhiteFideId "14205483"]

1.e4 {[%clk 01:40:57][%emt 00:00:03]} 1...e5 {[%clk 01:39:58][%emt 00:01:02]} 
2.Nf3 {[%clk 01:41:22][%emt 00:00:06]} 2...Nc6 {[%clk 01:40:17][%emt 00:00:11]} 
3.Bc4 {[%clk 01:42:17][%emt 00:00:05]} 3...Bc5 {[%clk 01:40:52][%emt 00:01:56]} 
4.d3 {[%clk 01:41:47][%emt 00:00:31]} 4...d6 {[%clk 01:40:02][%emt 00:01:20]} 
5.c3 {[%clk 01:42:12][%emt 00:00:05]} 5...Bb6 {[%clk 01:39:44][%emt 00:00:48]} 
6.O-O {[%clk 01:41:08][%emt 00:01:34]} 6...Nf6 {[%clk 01:37:25][%emt 00:02:48]} 
7.a4 {[%clk 01:40:23][%emt 00:01:16]} 7...a5 {[%clk 01:36:27][%emt 00:01:28]} 
8.Be3 {[%clk 01:08:48][%emt 00:32:05]} 8...Bxe3 {[%clk 01:31:57][%emt 00:04:59]} 
9.fxe3 {[%clk 01:09:10][%emt 00:00:09]} 9...O-O {[%clk 01:31:20][%emt 00:01:07]} 
10.Nbd2 {[%clk 01:09:19][%emt 00:00:21]} 10...Ne7 {[%clk 01:28:19][%emt
00:03:30]} 11.Nh4 {[%clk 01:02:40][%emt 00:07:09]} 11...d5 {[%clk 01:19:52][%emt
00:08:57]} 12.exd5 {[%clk 00:56:24][%emt 00:06:47]} 12...Nexd5 {[%clk
01:19:55][%emt 00:00:26]} 13.Qf3 {[%clk 00:56:04][%emt 00:00:50]} 13...Nb6 
{[%clk 01:17:46][%emt 00:02:39]} 14.e4 {[%clk 00:56:14][%emt 00:00:20]} 
14...Qd6 {[%clk 00:54:04][%emt 00:24:12]} 15.Qe2 {[%clk 00:34:05][%emt
00:22:40]} 15...Bg4 {[%clk 00:46:14][%emt 00:08:18]} 16.Nhf3 {[%clk
00:34:07][%emt 00:00:30]} 16...Rad8 {[%clk 00:40:33][%emt 00:06:11]} 17.h3 
{[%clk 00:33:39][%emt 00:00:58]} 17...Bh5 {[%clk 00:36:44][%emt 00:04:18]} 
18.g4 {[%clk 00:23:37][%emt 00:10:33]} 18...Bg6 {[%clk 00:34:45][%emt 00:02:28]} 
19.Rfd1 {[%clk 00:23:54][%emt 00:00:14]} 19...Nfd7 {[%clk 00:34:10][%emt
00:01:05]} 20.Bb3 {[%clk 00:17:58][%emt 00:06:23]} 20...Nc5 {[%clk
00:32:13][%emt 00:02:29]} 21.Nc4 {[%clk 00:18:25][%emt 00:00:04]} 21...Qf6 
{[%clk 00:28:36][%emt 00:04:06]} 22.Ba2 {[%clk 00:18:15][%emt 00:00:40]} 
22...Rfe8 {[%clk 00:26:57][%emt 00:02:09]} 23.Kg2 {[%clk 00:04:49][%emt
00:13:56]} 23...Nbxa4 {[%clk 00:25:30][%emt 00:01:57]} 24.h4 {[%clk
00:04:32][%emt 00:00:47]} 24...Qf4 {[%clk 00:15:36][%emt 00:10:24]} 25.Ncxe5 
{[%clk 00:03:15][%emt 00:01:47]} 25...Rxe5 {[%clk 00:14:55][%emt 00:01:12]} 
26.Nxe5 {[%clk 00:03:41][%emt 00:00:05]} 26...Qxe5 {[%clk 00:15:15][%emt
00:00:09]} 27.h5 {[%clk 00:04:04][%emt 00:00:07]} 27...Rxd3 {[%clk
00:14:18][%emt 00:01:27]} 28.Bxf7+ {[%clk 00:02:15][%emt 00:02:19]} 28...Kf8 
{[%clk 00:06:31][%emt 00:08:17]} 29.Rxd3 {[%clk 00:01:51][%emt 00:00:53]} 
29...Nxd3 {[%clk 00:06:59][%emt 00:00:02]} 30.Qe3 {[%clk 00:02:16][%emt
00:00:06]} 30...Qxe4+ {[%clk 00:05:04][%emt 00:02:25]} 31.Qxe4 {[%clk
00:02:43][%emt 00:00:03]} 31...Bxe4+ {[%clk 00:05:28][%emt 00:00:05]} 32.Kg3 
{[%clk 00:03:12][%emt 00:00:02]} 32...Kxf7 {[%clk 00:02:04][%emt 00:03:53]} 
33.Rxa4 {[%clk 00:03:34][%emt 00:00:09]} 33...Bc6 {[%clk 00:02:27][%emt
00:00:06]} 34.Rxa5 {[%clk 00:03:29][%emt 00:00:36]} 34...Nxb2 {[%clk
00:02:54][%emt 00:00:02]} 35.Rf5+ {[%clk 00:00:50] [%emt 00:03:09]} 35...Ke7 
{[%clk 00:02:32][%emt 00:00:50]} 36.Re5+ {[%clk 00:01:02][%emt 00:00:18]} 
36...Kf7 {[%clk 00:02:49][%emt 00:00:15]} 37.Rf5+ {[%clk 00:00:50][%emt
00:03:09]} 37...Kg8 {[%clk 00:03:11][%emt 00:00:07]} 38.Re5 {[%clk
00:01:53][%emt 00:00:07]} 38...Na4 {[%clk 00:03:19][%emt 00:00:22]} 39.c4 
{[%clk 00:02:17][%emt 00:00:06]} 39...Nb6 {[%clk 00:03:03][%emt 00:00:47]} 
40.g5 {[%clk 00:02:17][%emt 00:00:29]} 40...Kf7 {[%clk 00:02:38][%emt 00:00:55]} 
41.Rf5+ {[%clk 00:02:44][%emt 00:00:04]} 41...Ke7 {[%clk 00:47:08] [%emt
00:05:59]} 42.Re5+ {[%clk 00:52:48] [%emt 00:00:27]} 42...Kd8 {[%clk
00:40:37][%emt 00:07:00]} 43.Rf5 {[%clk 00:52:24][%emt 00:00:54]} 43...Ke7 
{[%clk 00:47:08][%emt 00:05:59]} 44.Re5+ {[%clk 00:52:48][%emt 00:00:27]} 
44...Kd6 {[%clk 00:27:30][%emt 00:00:40]} 45.Rf5 {[%clk 00:49:36][%emt
00:02:15]} 45...Ke6 {[%clk 00:24:58][%emt 00:03:02]} 46.Rf8 {[%clk
00:42:55][%emt 00:07:11]} 46...Nxc4 {[%clk 00:23:51][%emt 00:01:37]} 47.Rh8 
{[%clk 00:43:21][%emt 00:00:04]} 47...Nd6 {[%clk 00:08:01][%emt 00:16:20]} 
48.Rxh7 {[%clk 00:43:20][%emt 00:00:31]} 48...Be4 {[%clk 00:07:32][%emt
00:00:59]} 49.g6 {[%clk 00:38:36][%emt 00:05:13]} 49...b5 {[%clk 00:06:42][%emt
00:01:21]} 50.Kf4 {[%clk 00:37:22][%emt 00:01:44]} 50...b4 {[%clk 00:04:18][%emt
00:02:54]} 51.Rh8 {[%clk 00:36:43][%emt 00:01:08]} 51...b3 {[%clk 00:03:12][%emt
00:01:37]} 52.Rb8 {[%clk 00:36:53][%emt 00:00:20]} 52...Bd5 {[%clk
00:01:52][%emt 00:01:50]} 53.Ke3 {[%clk 00:35:49][%emt 00:01:35]} 53...b2 
{[%clk 00:00:39][%emt 00:01:43]} 54.h6 {[%clk 00:36:16][%emt 00:00:02]} 
54...gxh6 {[%clk 00:00:40][%emt 00:00:29]} 55.Kd4 {[%clk 00:36:37][%emt
00:00:08]} 55...Nf5+ {[%clk 00:00:43][%emt 00:00:28]} 56.Kc5 {[%clk
00:35:07][%emt 00:02:00]} 56...c6 {[%clk 00:01:02][%emt 00:00:11]} 57.Rxb2 
{[%clk 00:32:52][%emt 00:02:44]} 57...Kf6 {[%clk 00:01:26][%emt 00:00:07]} 0-1